bitfinex/quotes_BTCUSD_20251226
["timestamp","ask_amount","ask_price","bid_price","bid_amount"]
[1766732606264,4.1e-07,89160.0,89153.0,0.07473]
[1766732606852,4.1e-07,89160.0,89154.0,0.07473]
[1766732608722,4.1e-07,89160.0,89156.0,0.07473]
[1766732609871,4.1e-07,89160.0,89156.0,0.08594629]
[1766732610096,0.41016178,89170.0,89150.0,0.39894725]
[1766732610097,0.04151016,89179.0,89165.0,0.08594516]
[1766732610338,0.01124,89173.0,89167.0,0.01121491]
[1766732610510,1e-06,89173.0,89167.0,0.07473]
[1766732612351,0.00695687,89173.0,89166.0,0.01121503]
[1766732612570,0.00695687,89173.0,89171.0,0.07473]
[1766732612975,0.01124,89177.0,89171.0,0.07473]
[1766732613190,0.01131623,89177.0,89173.0,0.07473]
[1766732613327,7.623e-05,89177.0,89173.0,0.07473]
[1766732613527,0.01124,89176.0,89173.0,0.07473]
[1766732613744,0.01069,89176.0,89173.0,0.07473]
[1766732613954,0.01124,89178.0,89173.0,0.07473]
[1766732614869,0.02245352,89178.0,89173.0,0.07473]
[1766732615297,0.01124,89178.0,89173.0,0.07473]
[1766732618727,0.01124,89178.0,89172.0,0.01121428]
[1766732618913,0.01124,89178.0,89173.0,0.08594415]
[1766732619294,0.00573696,89178.0,89175.0,0.07473]
[1766732620218,0.00573696,89178.0,89175.0,0.074181]
[1766732622906,0.01695048,89178.0,89175.0,0.074181]
[1766732623076,0.00573696,89178.0,89175.0,0.074181]
[1766732633630,0.01695048,89178.0,89175.0,0.074181]
[1766732633934,0.00573696,89178.0,89175.0,0.074181]
[1766732634369,0.01695048,89178.0,89175.0,0.074181]
[1766732634540,0.00573696,89178.0,89175.0,0.074181]
[1766732634721,0.00573696,89178.0,89175.0,0.07393309]
[1766732636150,0.00518796,89178.0,89175.0,0.07393309]
[1766732636370,0.01121289,89183.0,89175.0,0.07393309]
[1766732636371,0.01121315,89184.0,89176.0,0.06939]
[1766732636577,0.01124,89183.0,89179.0,0.06939]
[1766732637694,0.01121302,89182.0,89179.0,0.068841]
[1766732639177,0.02245289,89183.0,89179.0,0.068841]
[1766732639355,0.01121264,89185.0,89174.0,0.08060403]
[1766732639560,0.01124,89187.0,89178.0,0.06939]
[1766732639893,0.01121252,89186.0,89178.0,0.06939]
[1766732640323,0.01121277,89184.0,89178.0,0.06939]
[1766732640527,0.01121264,89185.0,89178.0,0.06939]
[1766732640831,0.01121277,89184.0,89178.0,0.06939]
[1766732641030,0.0112139,89175.0,89165.0,0.01121516]
[1766732641232,0.01128209,89175.0,89167.0,0.06939]
[1766732641462,6.819e-05,89175.0,89167.0,0.06939]
[1766732642061,0.0112144,89171.0,89168.0,0.01124]
[1766732642409,0.0112144,89171.0,89167.0,0.06939]
[1766732643127,0.05607368,89169.0,89167.0,0.06939]
[1766732643328,0.01121541,89163.0,89160.0,0.03365788]
[1766732643533,0.01121516,89165.0,89160.0,0.03365788]
[1766732643700,0.01121541,89163.0,89160.0,0.10304788]
[1766732643897,0.01121541,89163.0,89160.0,0.10249888]
[1766732644099,0.01121541,89163.0,89160.0,0.06939]
[1766732644963,0.01121516,89165.0,89163.0,0.000549]
[1766732645257,0.06729067,89166.0,89160.0,0.06939]
[1766732645258,0.01121503,89166.0,89160.0,0.06939]
[1766732645441,0.01121491,89167.0,89160.0,0.06939]
[1766732645618,0.01121478,89168.0,89160.0,0.06939]
[1766732645819,0.02245478,89168.0,89160.0,0.06939]
[1766732646019,0.02148222,89168.0,89160.0,0.06939]
[1766732646224,0.01124,89168.0,89160.0,0.06939]
[1766732646757,0.02245478,89168.0,89160.0,0.06939]
[1766732646928,0.01121503,89166.0,89160.0,0.06939]
[1766732647107,0.01121528,89164.0,89160.0,0.06939]
[1766732647313,0.01121541,89163.0,89160.0,0.068841]
[1766732647543,0.01121591,89159.0,89152.0,0.08063]
[1766732647852,0.01121604,89158.0,89152.0,0.08063]
[1766732648458,0.01121591,89159.0,89152.0,0.08063]
[1766732648653,0.01121579,89160.0,89152.0,0.08063]
[1766732648855,0.01121579,89160.0,89159.0,0.000549]
[1766732649073,0.01121554,89162.0,89153.0,0.06939]
[1766732649473,0.06729326,89162.0,89153.0,0.06939]
[1766732649840,0.01121566,89161.0,89153.0,0.06939]
[1766732650267,0.01121554,89162.0,89153.0,0.08060667]
[1766732650474,0.01121554,89162.0,89153.0,0.06939]
[1766732650796,0.01121566,89161.0,89153.0,0.06939]
[1766732651138,0.01121554,89162.0,89161.0,0.000549]
[1766732651645,0.01121554,89162.0,89153.0,0.06939]
[1766732652194,0.06729358,89162.0,89153.0,0.06939]
[1766732652897,0.01121566,89161.0,89153.0,0.06939]
[1766732653101,0.01121554,89162.0,89153.0,0.06939]
[1766732653502,0.01121516,89165.0,89153.0,0.08060667]
[1766732653655,0.01121516,89165.0,89162.0,0.000549]
[1766732653853,0.01121516,89165.0,89158.0,0.06939]
[1766732654049,0.01121491,89167.0,89152.0,0.02245679]
[1766732654050,0.05607455,89167.0,89165.0,0.00055]
[1766732654503,0.01121503,89166.0,89163.0,0.07211]
[1766732656496,0.06729055,89166.0,89163.0,0.07211]
[1766732657179,0.00794817,89166.0,89163.0,0.07211]
[1766732657564,0.00739917,89166.0,89163.0,0.07211]
[1766732658594,0.05607589,89165.0,89163.0,0.07211]
[1766732659782,0.05607589,89165.0,89163.0,0.071561]
[1766732659985,0.01121579,89160.0,89153.0,0.07211]
[1766732660195,0.01121591,89159.0,89153.0,0.07211]
[1766732660398,0.01121566,89161.0,89159.0,0.000549]
[1766732660598,0.01121554,89162.0,89159.0,0.000549]
[1766732660799,0.01121566,89161.0,89153.0,0.07211]
[1766732661049,0.01121554,89162.0,89153.0,0.07211]
[1766732661170,0.01121566,89161.0,89153.0,0.07211]
[1766732662188,0.01121579,89160.0,89153.0,0.07211]
[1766732662439,0.01121566,89161.0,89153.0,0.07211]
[1766732662835,0.01121554,89162.0,89153.0,0.07211]
[1766732663556,0.01121541,89163.0,89162.0,0.000549]
[1766732663909,0.01121554,89162.0,89158.0,0.07211]
[1766732664108,0.01121566,89161.0,89158.0,0.07211]
[1766732664461,0.01121554,89162.0,89158.0,0.07211]
[1766732666447,0.01121541,89163.0,89162.0,0.000549]
[1766732667162,0.01121541,89163.0,89158.0,0.07211]
[1766732667588,0.01121554,89162.0,89158.0,0.07211]
[1766732667758,0.01121566,89161.0,89158.0,0.07211]
[1766732668765,0.01121554,89162.0,89158.0,0.07211]
[1766732668967,0.01121566,89161.0,89158.0,0.07211]
[1766732669310,0.06729412,89161.0,89158.0,0.07211]
[1766732669465,0.01121566,89161.0,89158.0,0.07211]
[1766732670899,0.01121554,89162.0,89158.0,0.07211]
[1766732671336,0.01121566,89161.0,89158.0,0.07211]
[1766732671544,0.01121554,89162.0,89158.0,0.07211]
[1766732673462,0.01121566,89161.0,89158.0,0.07211]
[1766732675274,0.01121554,89162.0,89158.0,0.07211]
[1766732676554,0.01121566,89161.0,89158.0,0.07211]
[1766732676975,0.0672943,89161.0,89158.0,0.07211]
[1766732677189,0.05607942,89160.0,89158.0,0.07211]
[1766732677612,0.0672943,89161.0,89158.0,0.07211]
[1766732680197,0.05607925,89160.0,89158.0,0.07211]
[1766732680838,0.01121591,89159.0,89152.0,0.01124]
[1766732681012,0.01121591,89159.0,89150.0,0.07211]
[1766732681382,0.01121591,89159.0,89151.0,0.07211]
[1766732681882,0.01121604,89158.0,89151.0,0.07211]
[1766732681999,0.01121591,89159.0,89151.0,0.07211]
[1766732684759,0.01121579,89160.0,89151.0,0.07211]
[1766732684926,0.01121591,89159.0,89151.0,0.07211]
[1766732685343,0.01121604,89158.0,89151.0,0.07211]
[1766732685544,0.01121591,89159.0,89151.0,0.07211]
[1766732685759,0.01121604,89158.0,89151.0,0.07211]
[1766732686129,0.01121616,89157.0,89151.0,0.07211]
[1766732686344,0.01121604,89158.0,89151.0,0.07211]
[1766732688283,0.01121591,89159.0,89151.0,0.07211]
[1766732688690,0.01121579,89160.0,89151.0,0.07211]
[1766732689472,0.01121604,89158.0,89151.0,0.07211]
[1766732689644,0.01121591,89159.0,89151.0,0.07211]
[1766732689865,0.01121616,89157.0,89151.0,0.07211]
[1766732690114,0.01121604,89158.0,89151.0,0.07211]
[1766732693626,0.01121616,89157.0,89151.0,0.07211]
[1766732693822,0.01121604,89158.0,89151.0,0.07211]
[1766732695323,0.06729506,89160.0,89151.0,0.07211]
[1766732695537,0.01121604,89158.0,89151.0,0.07211]
[1766732697124,0.01121591,89159.0,89151.0,0.07211]
[1766732697823,0.06729479,89160.0,89151.0,0.07211]
[1766732698123,0.01121604,89158.0,89151.0,0.07211]
[1766732698422,0.06729479,89160.0,89156.0,0.07107]
[1766732698804,0.01121591,89159.0,89156.0,0.07107]
[1766732699951,0.01121579,89160.0,89156.0,0.07107]
[1766732700127,0.01121579,89160.0,89159.0,0.000549]
[1766732700429,0.01121579,89160.0,89156.0,0.07107]
[1766732700430,0.01121591,89159.0,89156.0,0.07107]
[1766732701637,0.01121579,89160.0,89156.0,0.07107]
[1766732702957,0.01121566,89161.0,89156.0,0.07107]
[1766732703181,0.06729106,89165.0,89160.0,0.000549]
[1766732703323,0.06729106,89165.0,89156.0,0.07107]
[1766732703522,0.06729106,89165.0,89156.0,0.08228629]
[1766732703774,0.01121528,89164.0,89156.0,0.07107]
[1766732703933,0.01124,89168.0,89156.0,0.07107]
[1766732704131,0.01124,89168.0,89158.0,0.01121604]
[1766732704377,0.02245478,89168.0,89158.0,0.01121604]
[1766732704737,0.01121491,89167.0,89158.0,0.01121604]
[1766732705577,0.06728976,89167.0,89156.0,0.08228629]
[1766732705778,0.01121503,89166.0,89156.0,0.08228629]
[1766732706037,0.01121566,89172.0,89166.0,0.01121503]
[1766732706227,0.05606437,89184.0,89173.0,0.07107]
[1766732706432,0.01121239,89187.0,89176.0,0.08228377]
[1766732706605,0.01124,89188.0,89180.0,0.01121327]
[1766732706815,0.02245227,89188.0,89181.0,0.07107]
[1766732707017,0.01124,89188.0,89181.0,0.07107]
[1766732707169,0.010691,89188.0,89181.0,0.07107]
[1766732707355,0.02190327,89188.0,89181.0,0.07107]
[1766732707556,0.010691,89188.0,89181.0,0.07107]
[1766732707868,0.010691,89188.0,89181.0,0.08228315]
[1766732708092,0.01124,89189.0,89181.0,0.08228315]
[1766732708301,0.01124,89189.0,89181.0,0.07107]
[1766732708493,0.01124,89189.0,89182.0,0.07107]
[1766732708831,0.01069,89189.0,89184.0,0.08228277]
[1766732708988,0.01069,89189.0,89185.0,0.01121264]
[1766732709199,0.01124,89191.0,89186.0,0.01121252]
[1766732709834,0.01124,89191.0,89187.0,0.01121239]
[1766732710058,0.01124,89191.0,89185.0,0.01121264]
[1766732710459,0.01124,89191.0,89186.0,0.01121252]
[1766732710674,0.01124,89191.0,89187.0,0.01121239]
[1766732710822,0.01124,89191.0,89188.0,0.01121227]
[1766732711018,0.01124,89191.0,89186.0,0.08228252]
[1766732712274,0.01124,89191.0,89187.0,0.13834381]
[1766732712435,0.25344557,89202.0,89189.0,0.08228214]
[1766732712640,0.01124,89201.0,89193.0,0.08228164]
[1766732712837,0.01124,89201.0,89193.0,0.07107]
[1766732713180,0.02245063,89201.0,89193.0,0.07107]
[1766732713883,0.01121088,89199.0,89193.0,0.07107]
[1766732714253,0.01121101,89198.0,89193.0,0.07107]
[1766732715101,0.01121088,89199.0,89193.0,0.07107]
[1766732715469,0.01121063,89201.0,89193.0,0.07107]
[1766732715740,0.13011,89202.0,89195.0,0.06911]
[1766732716099,0.14132051,89202.0,89195.0,0.06911]
[1766732716399,0.01121076,89200.0,89195.0,0.06911]
[1766732716647,0.01121063,89201.0,89195.0,0.06911]
[1766732716840,0.01121076,89200.0,89195.0,0.06911]
[1766732717040,0.01121063,89201.0,89195.0,0.06911]
[1766732717241,0.01121076,89200.0,89195.0,0.06911]
[1766732717465,0.01121063,89201.0,89195.0,0.06911]
[1766732717684,0.01121076,89200.0,89195.0,0.06911]
[1766732717882,0.13011,89202.0,89195.0,0.06911]
[1766732720780,0.14132051,89202.0,89195.0,0.06911]
[1766732721149,0.13011,89202.0,89195.0,0.06911]
[1766732721798,0.13011,89202.0,89195.0,0.08032139]
[1766732722354,0.13011,89202.0,89195.0,0.06911]
[1766732722558,0.01121063,89201.0,89195.0,0.06911]
[1766732723600,0.01121076,89200.0,89195.0,0.06911]
[1766732723814,0.01121063,89201.0,89195.0,0.06911]
[1766732724779,0.14132051,89202.0,89195.0,0.06911]
[1766732724979,0.01121063,89201.0,89195.0,0.06911]
[1766732725204,0.14132051,89202.0,89195.0,0.06911]
[1766732725610,0.01121063,89201.0,89195.0,0.06911]
[1766732728222,0.01121076,89200.0,89195.0,0.06911]
[1766732728639,0.01121063,89201.0,89195.0,0.06911]
[1766732730496,0.01121088,89199.0,89195.0,0.06911]
[1766732730704,0.01121076,89200.0,89195.0,0.06911]
[1766732731103,0.01121063,89201.0,89195.0,0.06911]
[1766732732023,0.01121101,89198.0,89195.0,0.06911]
[1766732732233,0.01121088,89199.0,89195.0,0.06911]
[1766732732576,0.01121101,89198.0,89195.0,0.06307871]
[1766732732821,0.01121088,89199.0,89195.0,0.03070844]
[1766732733024,0.01121101,89198.0,89195.0,0.01864588]
[1766732733189,0.01121088,89199.0,89195.0,0.01508124]
[1766732733392,0.01121063,89201.0,89195.0,0.0126284]
[1766732733813,0.01121277,89184.0,89180.0,0.02245214]
[1766732733982,0.0560623,89187.0,89181.0,0.01124]
[1766732734179,0.0560623,89187.0,89180.0,0.01124]
[1766732734180,0.01121264,89185.0,89180.0,0.01124]
[1766732734380,0.06727469,89187.0,89177.0,0.08160333]
[1766732734605,0.06727469,89187.0,89178.0,0.08035]
[1766732734801,0.01121239,89187.0,89178.0,0.09156352]
[1766732735005,0.01121239,89187.0,89178.0,0.08035]
[1766732735226,0.01121239,89187.0,89178.0,0.09156352]
[1766732735555,0.01121227,89188.0,89179.0,0.0112134]
[1766732735701,0.01121239,89187.0,89178.0,0.09156352]
[1766732736749,0.01121252,89186.0,89178.0,0.08035]
[1766732736982,0.01121239,89187.0,89178.0,0.09156352]
[1766732737334,0.01121252,89186.0,89178.0,0.08035]
[1766732737544,0.01121239,89187.0,89178.0,0.09156352]
[1766732737760,0.01121252,89186.0,89178.0,0.08035]
[1766732738525,0.01121264,89185.0,89178.0,0.08035]
[1766732738849,0.01121277,89184.0,89178.0,0.08035]
[1766732739105,0.01121264,89185.0,89178.0,0.08035]
[1766732739274,0.01121252,89186.0,89178.0,0.08035]
[1766732739507,0.01121277,89184.0,89178.0,0.08035]
[1766732739679,0.01121264,89185.0,89178.0,0.08035]
[1766732740154,0.01121277,89184.0,89178.0,0.08035]
[1766732740346,0.01121264,89185.0,89178.0,0.08035]
[1766732741109,0.01121252,89186.0,89178.0,0.08035]
[1766732741527,0.01121264,89185.0,89178.0,0.08035]
[1766732742714,0.01121277,89184.0,89178.0,0.08035]
[1766732743313,0.01121252,89186.0,89178.0,0.08035]
[1766732743645,0.01121264,89185.0,89178.0,0.08035]
[1766732743851,0.01121277,89184.0,89178.0,0.08035]
[1766732744294,0.01121264,89185.0,89178.0,0.08035]
[1766732745170,0.01121264,89185.0,89178.0,0.06911]
[1766732745371,0.01121264,89185.0,89178.0,0.08035]
[1766732745575,0.01121252,89186.0,89178.0,0.08035]
[1766732745988,0.01121264,89185.0,89178.0,0.08035]
[1766732746193,0.01121252,89186.0,89178.0,0.08035]
[1766732746931,0.01121264,89185.0,89178.0,0.08035]
[1766732747170,0.01121277,89184.0,89178.0,0.08035]
[1766732747360,0.01121264,89185.0,89178.0,0.08035]
[1766732747558,0.01121252,89186.0,89178.0,0.08035]
[1766732747737,0.01121264,89185.0,89178.0,0.08035]
[1766732748130,0.01121239,89187.0,89178.0,0.08035]
[1766732748325,0.01121264,89185.0,89178.0,0.08035]
[1766732748528,0.05606191,89188.0,89178.0,0.08035]
[1766732748724,0.01121227,89188.0,89178.0,0.06730761]
[1766732748932,0.06727176,89191.0,89188.0,0.000549]
[1766732749428,0.06727176,89191.0,89182.0,0.07173]
[1766732749429,1.76e-06,89191.0,89182.0,0.07173]
[1766732749663,0.02245164,89193.0,89182.0,0.07173]
[1766732749811,0.01121201,89190.0,89182.0,0.07173]
[1766732750623,0.01121189,89191.0,89182.0,0.07173]
[1766732751078,0.01121201,89190.0,89182.0,0.07173]
[1766732751593,0.01121214,89189.0,89182.0,0.07173]
[1766732752592,0.01121227,89188.0,89182.0,0.07173]
[1766732753393,0.01121214,89189.0,89182.0,0.07173]
[1766732753598,0.01121227,89188.0,89179.0,0.0112134]
[1766732753762,0.01121227,89188.0,89179.0,0.0829434]
[1766732754359,0.01121214,89189.0,89180.0,0.01121327]
[1766732754581,0.01121227,89188.0,89179.0,0.0829434]
[1766732756842,0.01124,89193.0,89182.0,0.08294302]
[1766732757014,0.01124,89193.0,89188.0,0.000549]
[1766732757208,0.06727339,89189.0,89182.0,0.07173]
[1766732757399,0.02241851,89188.0,89182.0,0.07173]
[1766732757807,3.7e-06,89191.0,89182.0,0.07173]
[1766732758010,0.01121559,89191.0,89188.0,0.000549]
[1766732758240,0.01121559,89191.0,89182.0,0.07173]
[1766732758539,0.01121559,89191.0,89182.0,0.08294302]
[1766732759046,3.7e-06,89191.0,89183.0,0.01121289]
[1766732759285,3.7e-06,89191.0,89185.0,0.01121264]
[1766732759978,3.7e-06,89191.0,89186.0,0.01121252]
[1766732760756,3.7e-06,89191.0,89185.0,0.01121264]
[1766732761000,3.7e-06,89191.0,89186.0,0.01121252]
[1766732761139,3.7e-06,89191.0,89185.0,0.01121264]
[1766732761596,3.7e-06,89191.0,89186.0,0.01121252]
[1766732761753,0.02241851,89201.0,89187.0,0.07173]
[1766732761958,0.01121088,89199.0,89187.0,0.05606162]
[1766732762154,0.01121088,89199.0,89189.0,0.01121214]
[1766732762379,8.8e-07,89199.0,89189.0,0.01121214]
[1766732762582,8.8e-07,89199.0,89190.0,0.01121201]
[1766732762784,0.01121176,89199.0,89189.0,0.01121214]
[1766732762991,8.8e-07,89199.0,89190.0,0.01121201]
[1766732763524,0.01121025,89204.0,89187.0,0.01121239]
[1766732763703,0.05605541,89198.0,89185.0,0.01121264]
[1766732763896,4.68e-06,89200.0,89185.0,0.01121264]
[1766732764097,0.01121126,89196.0,89184.0,0.02245277]
[1766732764279,0.01121139,89195.0,89185.0,0.01121264]
[1766732764617,4.68e-06,89200.0,89184.0,0.02245277]
[1766732764618,0.01121227,89188.0,89184.0,0.01124]
[1766732764808,0.01176277,89184.0,89181.0,0.03365135]
[1766732764996,0.01121264,89185.0,89181.0,0.03365135]
[1766732764997,0.01121264,89185.0,89182.0,0.01124]
[1766732765195,0.01121252,89186.0,89182.0,0.01124]
[1766732765601,0.01121239,89187.0,89182.0,0.01124]
[1766732766235,0.01121214,89189.0,89182.0,0.01124]
[1766732766440,0.01121227,89188.0,89182.0,0.01124]
[1766732766642,0.01121214,89189.0,89182.0,0.01124]
[1766732767206,0.01121227,89188.0,89182.0,0.01124]
[1766732768352,0.01121214,89189.0,89182.0,0.01124]
[1766732768543,0.0672691,89194.0,89182.0,0.01124]
[1766732768775,0.01121176,89192.0,89189.0,0.000549]
[1766732769155,0.01121189,89191.0,89182.0,0.01124]
[1766732769987,0.01121214,89189.0,89182.0,0.01124]
[1766732770108,0.01121252,89186.0,89182.0,0.01124]
[1766732771145,0.01121264,89185.0,89182.0,0.01124]
[1766732771328,0.01121264,89185.0,89183.0,0.01124]
[1766732771525,0.01121252,89186.0,89183.0,0.01124]
[1766732771728,0.01121252,89186.0,89183.0,0.01069]
[1766732771928,0.01121289,89183.0,89179.0,0.01124]
[1766732772133,0.01121315,89181.0,89180.0,0.01124]
[1766732772361,0.01121302,89182.0,89179.0,0.01124]
[1766732772762,0.01121289,89183.0,89179.0,0.01124]
[1766732773001,0.06727635,89185.0,89179.0,0.01124]
[1766732773113,0.01121264,89185.0,89179.0,0.01124]
[1766732773680,0.01121239,89187.0,89179.0,0.01124]
[1766732773883,0.01121277,89184.0,89179.0,0.01124]
[1766732774493,0.01121252,89186.0,89179.0,0.01124]
[1766732774866,0.06727472,89187.0,89179.0,0.01124]
[1766732775045,0.01121252,89186.0,89179.0,0.01124]
[1766732775709,0.01121264,89185.0,89179.0,0.01124]
[1766732775875,0.01121252,89186.0,89179.0,0.01124]
[1766732776278,0.06727472,89187.0,89179.0,0.01124]
[1766732776482,0.01121252,89186.0,89179.0,0.01124]
[1766732776678,0.14202227,89190.0,89179.0,0.01124]
[1766732776889,0.08596201,89190.0,89179.0,0.0224534]
[1766732777114,0.07475,89190.0,89181.0,0.01121315]
[1766732777501,0.07475,89190.0,89180.0,0.01121327]
[1766732777702,0.07475,89190.0,89181.0,0.01121315]
[1766732779024,0.08596201,89190.0,89180.0,0.01121327]
[1766732779420,0.07475,89190.0,89180.0,0.01121327]
[1766732779619,0.07475,89190.0,89181.0,0.01121315]
[1766732779824,0.07475,89190.0,89182.0,0.01121302]
[1766732780224,0.07475,89190.0,89181.0,0.01121315]
[1766732780426,0.07475,89190.0,89182.0,0.01121302]
[1766732780840,0.01121151,89194.0,89190.0,0.000549]
[1766732781041,0.0734,89196.0,89190.0,0.000549]
[1766732781042,0.01121126,89196.0,89190.0,0.000549]
[1766732781220,0.01121113,89197.0,89187.0,0.01121239]
[1766732781409,0.01124,89198.0,89188.0,0.01121227]
[1766732781609,4.68e-06,89200.0,89188.0,0.01121227]
[1766732781610,0.01121088,89199.0,89188.0,0.01121227]
[1766732781812,0.01121101,89198.0,89188.0,0.01121227]
[1766732782087,0.01121101,89198.0,89187.0,0.01121239]
[1766732782575,0.01121101,89198.0,89188.0,0.01121227]
[1766732783453,0.01121113,89197.0,89187.0,0.01121239]
[1766732784830,0.01121113,89197.0,89188.0,0.01121227]
[1766732785068,0.01121101,89198.0,89188.0,0.01121227]
[1766732785267,0.01121088,89199.0,89189.0,0.01121214]
[1766732785674,0.01121101,89198.0,89188.0,0.01121227]
[1766732785931,0.01121088,89199.0,89189.0,0.01121214]
[1766732786109,0.06729888,89200.0,89190.0,0.01121201]
[1766732786110,0.02245544,89200.0,89190.0,0.01121201]
[1766732786406,0.01124468,89200.0,89191.0,0.01121189]
[1766732786586,0.02245544,89200.0,89189.0,0.01121214]
[1766732786804,0.01121088,89199.0,89189.0,0.01121214]
[1766732787001,0.01121088,89199.0,89185.0,0.06727543]
[1766732787002,0.01121101,89198.0,89187.0,0.01121239]
[1766732787777,0.01121113,89197.0,89187.0,0.01121239]
[1766732787973,0.01121113,89197.0,89188.0,0.01121227]
[1766732788185,0.01121113,89197.0,89189.0,0.01124]
[1766732788820,0.01121151,89194.0,89189.0,0.01124]
[1766732789161,0.01121139,89195.0,89189.0,0.01124]
[1766732789383,0.01121239,89187.0,89185.0,0.01124]
[1766732789566,0.01121214,89189.0,89185.0,0.01124]
[1766732789767,0.01121201,89190.0,89185.0,0.01124]
[1766732789899,0.01121189,89191.0,89185.0,0.01124]
[1766732790104,0.01121201,89190.0,89185.0,0.01124]
[1766732790404,0.01121189,89191.0,89186.0,0.03365135]
[1766732791457,0.01121164,89193.0,89186.0,0.03365135]
[1766732791820,0.05605737,89195.0,89186.0,0.03365135]
[1766732792019,0.01121113,89197.0,89188.0,0.01121227]
[1766732792270,0.01121101,89198.0,89188.0,0.01121227]
[1766732792470,0.01121101,89198.0,89189.0,0.01121214]
[1766732792924,0.01121101,89198.0,89188.0,0.01121227]
[1766732793151,0.01121101,89198.0,89188.0,0.02242466]
[1766732793355,0.0734,89199.0,89189.0,0.06727286]
[1766732793575,4.68e-06,89200.0,89190.0,0.01121201]
[1766732793793,4.68e-06,89200.0,89192.0,0.01121176]
[1766732794006,4.68e-06,89200.0,89191.0,0.01121189]
[1766732795877,4.68e-06,89200.0,89189.0,0.01121214]
[1766732795878,0.01121088,89199.0,89189.0,0.01121214]
[1766732796065,0.01121088,89199.0,89188.0,0.02242466]
[1766732796274,4.68e-06,89200.0,89191.0,0.01121189]
[1766732796698,0.01121544,89200.0,89190.0,0.01121201]
[1766732797442,0.01121101,89198.0,89188.0,0.02242466]
[1766732797806,1.01e-06,89198.0,89190.0,0.01121201]
[1766732798006,1.01e-06,89198.0,89191.0,0.01121189]
[1766732798212,1.01e-06,89198.0,89192.0,0.01121176]
[1766732799104,4.68e-06,89200.0,89194.0,0.01121151]
[1766732799739,4.68e-06,89200.0,89193.0,0.01121164]
[1766732800123,4.68e-06,89200.0,89194.0,0.01121151]
[1766732800514,4.68e-06,89200.0,89193.0,0.01121164]
[1766732800714,4.68e-06,89200.0,89194.0,0.01121151]
[1766732803302,0.011209,89214.0,89202.0,0.01121051]
[1766732803495,0.02244938,89211.0,89200.0,0.01121076]
[1766732803727,0.01124,89211.0,89202.0,0.01121051]
[1766732803932,0.01121,89206.0,89195.0,0.03364633]
[1766732804138,0.01121038,89203.0,89195.0,0.03364633]
[1766732804309,0.01121051,89202.0,89195.0,0.03364633]
[1766732804532,0.01121076,89200.0,89195.0,0.03364633]
[1766732804682,0.05605611,89197.0,89195.0,0.03364633]
[1766732804888,0.05550711,89197.0,89195.0,0.03364633]
[1766732805093,0.04499659,89197.0,89195.0,0.03364633]
[1766732805297,0.06726607,89198.0,89183.0,0.02241851]
[1766732805298,0.01121239,89187.0,89183.0,0.02241851]
[1766732805577,0.01121201,89190.0,89187.0,0.03364803]
[1766732805782,0.01121227,89188.0,89180.0,0.39858402]
[1766732805973,0.01121227,89188.0,89183.0,0.03364803]
[1766732806134,0.01121252,89186.0,89183.0,0.03364803]
[1766732806352,0.01121289,89183.0,89177.0,0.00127968]
[1766732806553,0.01121277,89184.0,89178.0,0.01124]
[1766732807129,0.01121264,89185.0,89178.0,0.01124]
[1766732807915,0.01121264,89185.0,89179.0,0.01124]
[1766732808078,0.06727468,89187.0,89179.0,0.01124]
[1766732808275,0.01121239,89187.0,89179.0,0.01124]
[1766732808477,0.01121227,89188.0,89179.0,0.01124]
[1766732809400,0.01121239,89187.0,89179.0,0.01124]
[1766732809942,0.01121252,89186.0,89179.0,0.01124]
[1766732810236,0.06727454,89187.0,89179.0,0.01124]
[1766732810439,0.01121264,89185.0,89177.0,0.01377301]
[1766732810737,0.01121277,89184.0,89180.0,0.01124]
[1766732810955,0.01121252,89186.0,89180.0,0.01124]
[1766732811128,0.01121264,89185.0,89180.0,0.01124]
[1766732811797,0.01121252,89186.0,89180.0,0.01124]
[1766732813218,0.01121239,89187.0,89180.0,0.01124]
[1766732813441,0.01121252,89186.0,89180.0,0.01124]
[1766732814016,0.01121227,89188.0,89180.0,0.01124]
[1766732815153,0.06727192,89191.0,89181.0,0.02241851]
[1766732815651,0.01121239,89187.0,89181.0,0.02241851]
[1766732815853,0.01121227,89188.0,89181.0,0.02241851]
[1766732816080,0.01121214,89189.0,89181.0,0.02241851]
[1766732816263,0.01121239,89187.0,89181.0,0.02241851]
[1766732816474,0.01121214,89189.0,89181.0,0.02241851]
[1766732816676,0.01121214,89189.0,89182.0,0.01124]
[1766732816881,0.01121227,89188.0,89182.0,0.01124]
[1766732817035,0.01121214,89189.0,89182.0,0.01124]
[1766732817504,0.00014863,89191.0,89182.0,0.01124]
[1766732817623,0.01136052,89191.0,89182.0,0.01124]
[1766732817828,0.01121201,89190.0,89182.0,0.01124]
[1766732818485,0.01121227,89188.0,89182.0,0.01124]
[1766732818712,0.01121214,89189.0,89182.0,0.01124]
[1766732818829,0.06727264,89190.0,89182.0,0.01124]
[1766732818830,0.0674205,89191.0,89182.0,0.01124]
[1766732819031,0.01121214,89189.0,89182.0,0.01124]
[1766732819337,0.01121201,89190.0,89182.0,0.01124]
[1766732819964,0.01121214,89189.0,89182.0,0.01124]
[1766732820527,0.01121201,89190.0,89182.0,0.01124]
[1766732820661,0.01121214,89189.0,89182.0,0.01124]
[1766732821480,0.01121201,89190.0,89182.0,0.01124]
[1766732822159,0.01121201,89190.0,89181.0,0.02241851]
[1766732822365,0.01121201,89190.0,89182.0,0.01124]
[1766732823265,0.01121214,89189.0,89182.0,0.01124]
[1766732824851,0.05606322,89186.0,89182.0,0.01124]
[1766732825062,0.01121252,89186.0,89182.0,0.010691]
[1766732825434,0.01121264,89185.0,89182.0,0.010691]
[1766732826277,0.01121252,89186.0,89182.0,0.010691]
[1766732826709,0.01121302,89182.0,89176.0,7.623e-05]
[1766732826839,0.01121327,89180.0,89178.0,0.01124]
[1766732827040,0.01121327,89180.0,89177.0,0.00127968]
[1766732827257,0.01121327,89180.0,89178.0,0.01124]
[1766732827977,0.01121315,89181.0,89178.0,0.01124]
[1766732828176,0.01121302,89182.0,89178.0,0.01124]
[1766732829188,0.01121277,89184.0,89178.0,0.01124]
[1766732829986,0.0112134,89179.0,89167.0,0.03363342]
[1766732830253,0.01121352,89178.0,89168.0,0.01124]
[1766732830388,0.01126956,89179.0,89168.0,0.01124]
[1766732830389,5.616e-05,89179.0,89178.0,0.000549]
[1766732830593,5.616e-05,89179.0,89168.0,0.40982402]
[1766732831011,5.616e-05,89179.0,89172.0,0.06728566]
[1766732831214,5.616e-05,89179.0,89175.0,0.0112139]
[1766732831535,1.6e-07,89179.0,89175.0,0.0112139]